bitfinex-derivatives/quotes_BTCF0:USTF0_20210703
["timestamp","ask_amount","ask_price","bid_price","bid_amount"]
[1625311920862,0.80243088,34484.0,34482.0,0.51673068]
[1625311921110,0.80243088,34484.0,34483.0,0.0054993]
[1625311921211,0.80243088,34484.0,34483.0,0.51673197]
[1625311921761,0.80243088,34484.0,34483.0,0.0054993]
[1625311923315,0.80243088,34484.0,34482.0,0.00549947]
[1625311923567,0.80243088,34484.0,34483.0,0.00549944]
[1625311923817,0.80243088,34484.0,34482.0,0.00549944]
[1625311924617,0.80243088,34484.0,34481.0,0.00549947]
[1625311925871,1.04300632,34484.0,34481.0,0.00549947]
[1625311925971,1.04300632,34484.0,34480.0,0.34615898]
[1625311926221,1.04300632,34484.0,34481.0,0.00549968]
[1625311926673,1.04300632,34484.0,34480.0,0.00549968]
[1625311926773,1.04300632,34484.0,34480.0,0.34609833]
[1625311927275,1.04300632,34484.0,34481.0,0.00549968]
[1625311928326,1.10200632,34484.0,34481.0,0.00549968]
[1625311928527,1.04300632,34484.0,34480.0,0.00549689]
[1625311928730,1.10200632,34484.0,34480.0,0.00549689]
[1625311928829,1.10200632,34484.0,34482.0,0.00549689]
[1625311929079,1.10200632,34484.0,34479.0,0.00549766]
[1625311929329,1.10200632,34484.0,34478.0,0.85140179]
[1625311929583,1.10200632,34484.0,34479.0,0.00549769]
[1625311929884,0.24057544,34480.0,34479.0,0.00549769]
[1625311930082,0.29957544,34480.0,34479.0,0.00549769]
[1625311930181,0.29957544,34480.0,34478.0,0.0054985]
[1625311930687,0.29957544,34480.0,34476.0,0.00549846]
[1625311931536,0.29957544,34480.0,34475.0,0.00549863]
[1625311931736,0.29957544,34480.0,34477.0,0.00549863]
[1625311931887,0.24057544,34478.0,34477.0,0.00549863]
[1625311932037,0.29957544,34478.0,34475.0,0.00549865]
[1625311932336,0.29957544,34478.0,34477.0,0.00549865]
[1625311932439,0.05350135,34475.0,34473.0,1.09175969]
[1625311932540,0.30893135,34475.0,34473.0,1.09175969]
[1625311932646,0.36793135,34475.0,34473.0,0.85118425]
[1625311933391,0.36793135,34475.0,34469.0,0.3405501]
[1625311933644,0.36793135,34475.0,34470.0,0.00549118]
[1625311933944,0.48115088,34471.0,34470.0,0.00549118]
[1625311934044,0.54015088,34471.0,34470.0,0.00549118]
[1625311934144,0.54015088,34471.0,34469.0,0.00549121]
[1625311934397,0.54015088,34471.0,34470.0,0.00549135]
[1625311934699,0.54015088,34471.0,34468.0,0.00549132]
[1625311935052,0.54015088,34471.0,34468.0,0.34588551]
[1625311935252,0.54015088,34471.0,34469.0,0.0054914]
[1625311935754,0.54015088,34471.0,34468.0,0.00549143]
[1625311936002,0.78072632,34471.0,34470.0,0.00549136]
[1625311936254,0.78072632,34471.0,34468.0,0.00549138]
[1625311938460,0.78072632,34471.0,34467.0,0.00549194]
[1625311940013,0.78072632,34471.0,34466.0,0.00549231]
[1625311940263,0.78072632,34471.0,34468.0,0.00549223]
[1625311940565,0.78072632,34471.0,34466.0,0.00549217]
[1625311940665,0.78072632,34471.0,34466.0,0.34547473]
[1625311940766,0.78072632,34471.0,34469.0,0.0054921]
[1625311941064,0.78072632,34471.0,34467.0,0.00549223]
[1625311942367,0.78072632,34471.0,34466.0,0.00549264]
[1625311943919,0.24057544,34467.0,34466.0,0.00549264]
[1625311944121,0.29957544,34467.0,34466.0,0.00549264]
[1625311946072,0.24057544,34467.0,34466.0,0.00549264]
[1625311946223,0.24057544,34467.0,34466.0,0.15019264]
[1625311946372,0.24057544,34467.0,34466.0,0.06449264]
[1625311948275,0.29957544,34467.0,34466.0,0.06449264]
[1625311949781,0.29957544,34467.0,34466.0,0.00549264]
[1625311953335,0.29957544,34467.0,34464.0,0.005488]
[1625311953986,0.24057544,34465.0,34464.0,0.005488]
[1625311954188,0.29957544,34465.0,34464.0,0.005488]
[1625311955939,0.29957544,34465.0,34464.0,0.1755298]
[1625311956339,0.24057544,34465.0,34464.0,0.1755298]
[1625311956443,0.29957544,34465.0,34464.0,0.1755298]
[1625311956740,0.29957544,34465.0,34464.0,0.005488]
[1625311957896,0.29957544,34465.0,34463.0,0.00548857]
[1625311958047,0.24057544,34464.0,34463.0,0.00548857]
[1625311958150,0.29957544,34464.0,34463.0,0.00548857]
[1625311958396,0.29957544,34464.0,34461.0,0.00548855]
[1625311958496,0.57656544,34464.0,34461.0,0.00548855]
[1625311958699,0.57656544,34464.0,34463.0,0.00548861]
[1625311959052,0.57656544,34464.0,34461.0,0.17565372]
[1625311959248,0.57656544,34464.0,34462.0,0.00548868]
[1625311959549,0.29957544,34464.0,34462.0,0.00548868]
[1625311959999,0.24057544,34463.0,34462.0,0.00548868]
[1625311960100,0.29957544,34463.0,34462.0,0.00548868]
[1625311960500,0.35857544,34463.0,34462.0,0.00548868]
[1625311960600,0.29957544,34463.0,34462.0,0.00548868]
[1625311961252,0.35857544,34463.0,34462.0,0.00548868]
[1625311961356,0.52544544,34463.0,34460.0,0.00548945]
[1625311961453,0.58444544,34463.0,34460.0,0.00548945]
[1625311961553,0.52544544,34463.0,34460.0,0.00548945]
[1625311961703,0.52544544,34463.0,34462.0,0.00548945]
[1625311961859,0.52544544,34463.0,34460.0,0.00548943]
[1625311962056,0.24057544,34461.0,34460.0,0.00548943]
[1625311962258,0.29957544,34461.0,34460.0,0.00548943]
[1625311964664,0.35857544,34461.0,34460.0,0.00548943]
[1625311965364,0.35857544,34461.0,34459.0,0.00548973]
[1625311965967,0.35857544,34461.0,34458.0,0.00548985]
[1625311966067,0.24057544,34459.0,34458.0,0.00548985]
[1625311966169,0.35857544,34459.0,34458.0,0.00548985]
[1625311966417,0.29957544,34459.0,34458.0,0.00548985]
[1625311966517,0.35857544,34459.0,34458.0,0.00548985]
[1625311966818,0.29957544,34459.0,34458.0,0.00548985]
[1625311967067,0.35857544,34459.0,34458.0,0.00548985]
[1625311967168,0.29957544,34459.0,34458.0,0.00548985]
[1625311967270,0.35857544,34459.0,34458.0,0.00548985]
[1625311967369,0.35857544,34459.0,34458.0,0.1759312]
[1625311967819,0.29957544,34459.0,34458.0,0.1759312]
[1625311968020,0.35857544,34459.0,34458.0,0.1759312]
[1625311968271,0.29957544,34459.0,34458.0,0.1759312]
[1625311968623,0.29957544,34459.0,34458.0,0.00548985]
[1625311969174,0.29957544,34459.0,34457.0,0.51696781]
[1625311969422,0.29957544,34459.0,34458.0,0.00548791]
[1625311969523,0.35857544,34459.0,34458.0,0.00548791]
[1625311970425,0.35857544,34459.0,34457.0,0.0054881]
[1625311970975,0.35857544,34459.0,34456.0,0.00548804]
[1625311971175,0.35857544,34459.0,34456.0,0.17605909]
[1625311971425,0.29957544,34459.0,34456.0,0.17605909]
[1625311971525,0.35857544,34459.0,34457.0,0.00548811]
[1625311972076,0.24057544,34458.0,34457.0,0.00548811]
[1625311972324,0.29957544,34458.0,34457.0,0.00548811]
[1625311973227,0.29957544,34458.0,34457.0,0.51746144]
[1625311973978,0.29957544,34458.0,34457.0,0.34680366]
[1625311974482,0.29957544,34458.0,34457.0,0.51743879]
[1625311975080,0.29957544,34458.0,34457.0,0.85885231]
[1625311975929,0.24057544,34458.0,34457.0,0.85885231]
[1625311976181,0.29957544,34458.0,34457.0,0.85885231]
[1625311976430,0.29957544,34458.0,34457.0,0.51746533]
[1625311977034,0.29957544,34458.0,34457.0,0.51765222]
[1625311977479,0.29957544,34458.0,34457.0,0.78584222]
[1625311978081,0.29957544,34458.0,34457.0,0.78580293]
[1625311978633,0.35857544,34458.0,34457.0,0.51761293]
[1625311978734,0.29957544,34458.0,34457.0,0.51761293]
[1625311979735,0.35857544,34458.0,34457.0,0.51761293]
[1625311979835,0.46705124,34458.0,34457.0,0.17619638]
[1625311979934,0.52605124,34458.0,34457.0,0.17619638]
[1625311980336,0.35857544,34458.0,34457.0,0.51772976]
[1625311980737,0.29957544,34458.0,34457.0,0.17619638]
[1625311980885,0.35857544,34458.0,34457.0,0.17619638]
[1625311981035,0.29957544,34458.0,34457.0,0.17619638]
[1625311981137,0.35857544,34458.0,34457.0,0.51772796]
[1625311981236,0.29957544,34458.0,34457.0,0.51772796]
[1625311981537,0.29957544,34458.0,34457.0,0.17619638]
[1625311981787,0.35857544,34458.0,34457.0,0.17619638]
[1625311981888,0.29957544,34458.0,34457.0,0.17619638]
[1625311981989,0.35857544,34458.0,34457.0,0.17619638]
[1625311982138,0.29957544,34458.0,34457.0,0.5177285]
[1625311982244,0.35857544,34458.0,34457.0,0.5177285]
[1625311983345,0.52609816,34458.0,34457.0,0.17619638]
[1625311983594,0.46709816,34458.0,34457.0,0.17619638]
[1625311983796,0.52609816,34458.0,34457.0,0.17619638]
[1625311983896,0.46709816,34458.0,34457.0,0.51783864]
[1625311984299,0.29957544,34458.0,34457.0,1.20177318]
[1625311984447,0.35857544,34458.0,34457.0,1.20177318]
[1625311984547,0.29957544,34458.0,34457.0,1.20177318]
[1625311984651,0.35857544,34458.0,34457.0,1.20177318]
[1625311984753,0.52615854,34458.0,34457.0,0.85996666]
[1625311984849,0.46715854,34458.0,34457.0,0.85996666]
[1625311984950,0.52615854,34458.0,34457.0,0.85996666]
[1625311985050,0.80214388,34458.0,34457.0,0.51816529]
[1625311985151,0.86114388,34458.0,34457.0,0.51816529]
[1625311985551,0.94501155,34458.0,34457.0,0.51816529]
[1625311986102,0.88601155,34458.0,34457.0,0.51816529]
[1625311986204,1.0796302,34458.0,34457.0,0.09093724]
[1625311986604,1.41472619,34458.0,34457.0,0.86031101]
[1625311987104,1.0796302,34458.0,34457.0,0.51838224]
[1625311987604,1.0206302,34458.0,34457.0,0.51838224]
[1625311987705,1.53062893,34458.0,34457.0,0.09097279]
[1625311987904,1.47162893,34458.0,34457.0,0.09097279]
[1625311988003,1.53062893,34458.0,34457.0,0.09097279]
[1625311988104,1.47162893,34458.0,34457.0,0.09097279]
[1625311988206,2.47712763,34458.0,34457.0,0.51868288]
[1625311988706,1.53062893,34458.0,34457.0,0.60420738]
[1625311989315,1.53062893,34458.0,34457.0,0.51868288]
[1625311989565,1.47162893,34458.0,34457.0,0.51868288]
[1625311989664,1.53062893,34458.0,34457.0,0.51868288]
[1625311990015,1.47162893,34458.0,34457.0,0.51868288]
[1625311990114,1.53062893,34458.0,34457.0,0.51868288]
[1625311990263,1.47162893,34458.0,34457.0,0.51868288]
[1625311990363,1.53062893,34458.0,34457.0,0.51868288]
[1625311990464,2.53654236,34458.0,34457.0,0.86099399]
[1625311990616,2.47754236,34458.0,34457.0,0.86099399]
[1625311990916,2.53654236,34458.0,34457.0,0.86099399]
[1625311991015,2.47754236,34458.0,34457.0,0.86099399]
[1625311991368,1.53062893,34458.0,34457.0,0.51886414]
[1625311991469,1.75864893,34458.0,34455.0,1.02628472]
[1625311991667,1.77070429,34458.0,34455.0,1.02628472]
[1625311991920,0.01207127,34457.0,34456.0,0.00548146]
[1625311992071,0.13007127,34457.0,34456.0,0.00548146]
[1625311992424,0.13007127,34457.0,34452.0,0.00548159]
[1625311992772,0.01207171,34456.0,34452.0,0.00548159]
[1625311992872,0.07107171,34456.0,34452.0,0.00548159]
[1625311992973,0.118,34456.0,34452.0,0.00548159]
[1625311993275,0.118,34456.0,34448.0,0.00548159]
[1625311993376,3.51075632,34453.0,34448.0,0.00548159]
[1625311993475,3.62875632,34453.0,34448.0,0.00548159]
[1625311993776,1.00344567,34449.0,34448.0,0.00548159]
[1625311993976,1.06244567,34449.0,34448.0,0.00548159]
[1625311994075,1.36539567,34449.0,34448.0,0.00548159]
[1625311994227,2.08712199,34449.0,34448.0,0.2621571]
[1625311994677,2.02812199,34449.0,34448.0,0.00548159]
[1625311994827,2.08712199,34449.0,34448.0,0.00548159]
[1625311996433,2.08712199,34449.0,34447.0,0.0910085]
[1625311996681,2.08712199,34449.0,34448.0,0.00548169]
[1625311997181,2.08712199,34449.0,34447.0,0.00548164]
[1625311999641,2.08712199,34449.0,34440.0,0.08548057]
[1625311999642,3.50609474,34448.0,34440.0,0.08548057]
[1625311999739,3.62409474,34448.0,34440.0,0.08548057]
[1625311999940,3.62409474,34448.0,34441.0,0.00548255]
[1625312000142,1.00169118,34443.0,34441.0,0.00548255]
[1625312000239,0.72172632,34442.0,34441.0,0.00548255]
[1625312000339,0.93018632,34442.0,34441.0,0.00548255]
[1625312000439,1.04818632,34442.0,34440.0,0.0054827]
[1625312000893,0.93018632,34442.0,34440.0,0.0054827]
[1625312001139,0.08362787,34441.0,34440.0,0.09091352]
[1625312001339,0.14262787,34441.0,34440.0,0.09091352]
[1625312001589,0.059,34441.0,34440.0,0.60348182]
[1625312001990,0.059,34441.0,34440.0,0.518051]
[1625312002089,0.118,34441.0,34440.0,0.518051]
[1625312002189,0.059,34441.0,34440.0,0.518051]
[1625312002539,0.059,34441.0,34440.0,0.60347873]
[1625312002639,0.059,34441.0,34440.0,0.26176653]
[1625312003893,0.72172632,34442.0,34440.0,0.26176653]
[1625312004342,0.78072632,34442.0,34440.0,0.26176653]
[1625312004442,0.78072632,34442.0,34441.0,0.00548238]
[1625312004543,0.72172632,34442.0,34441.0,0.00548238]
[1625312004644,0.86432133,34442.0,34441.0,0.00548238]
[1625312004794,0.80532133,34442.0,34441.0,0.00548238]
[1625312004899,0.86432133,34442.0,34441.0,0.00548238]
[1625312004996,0.80532133,34442.0,34441.0,0.00548238]
[1625312005197,0.86432133,34442.0,34440.0,0.00548229]
[1625312005298,0.80532133,34442.0,34440.0,0.00548229]
[1625312005398,0.80532133,34442.0,34441.0,0.059]
[1625312005748,0.80532133,34442.0,34441.0,1.08874371]
[1625312005749,0.72172632,34442.0,34441.0,1.08874371]
[1625312006249,0.24057544,34449.0,34441.0,3.00544616]
[1625312006750,0.24057544,34449.0,34442.0,0.00548128]
[1625312006849,0.24057544,34449.0,34442.0,0.06448128]
[1625312007099,0.24057544,34449.0,34447.0,0.53324106]
[1625312007201,0.25115236,34450.0,34447.0,0.59224106]
[1625312007299,0.25115236,34450.0,34448.0,0.00548108]
[1625312007449,0.25115236,34450.0,34448.0,0.06448108]
[1625312007700,0.24057544,34454.0,34448.0,0.06448108]
[1625312007701,0.5861019,34452.0,34448.0,0.57658896]
[1625312007900,0.5861019,34452.0,34449.0,0.00548112]
[1625312008002,0.5861019,34452.0,34449.0,0.06448112]
[1625312008151,0.5861019,34452.0,34449.0,0.14983214]
[1625312008251,0.5861019,34452.0,34451.0,0.48115088]
[1625312008552,0.50227745,34452.0,34451.0,0.48115088]
[1625312008701,0.50227745,34452.0,34451.0,0.48663088]
[1625312008903,1.00408675,34453.0,34451.0,0.48663088]
[1625312009151,1.00408675,34453.0,34452.0,0.00548018]
[1625312009502,1.24469675,34454.0,34452.0,0.00548018]
[1625312009953,1.24469675,34454.0,34451.0,0.48115088]
[1625312010254,1.24469675,34454.0,34452.0,0.00548013]
[1625312010605,1.00429526,34453.0,34452.0,0.00548013]
[1625312010804,1.12229526,34453.0,34451.0,0.48115088]
[1625312011612,1.00400013,34452.0,34451.0,0.48115088]
[1625312011713,1.06300013,34452.0,34451.0,0.48115088]
[1625312012113,1.06300013,34452.0,34451.0,0.48663128]
[1625312015977,1.00400013,34452.0,34451.0,0.48663128]
[1625312016127,1.06300013,34452.0,34451.0,0.48663128]
[1625312018332,1.00400013,34452.0,34451.0,0.48663128]
[1625312019835,1.00603518,34453.0,34451.0,0.74311478]
[1625312020284,1.00603518,34453.0,34452.0,0.00547964]
[1625312020534,1.00603518,34453.0,34452.0,0.26201738]
[1625312021185,1.00654347,34454.0,34452.0,0.60409136]
[1625312021583,1.00654347,34454.0,34453.0,0.00547944]
[1625312022185,1.00654347,34454.0,34453.0,0.26202915]
[1625312023439,1.00654347,34454.0,34453.0,0.09099601]
[1625312023941,1.00654347,34454.0,34453.0,0.26207493]
[1625312024289,1.00654347,34454.0,34453.0,0.60430084]
[1625312024391,1.24711891,34454.0,34453.0,0.60430084]
[1625312024845,1.24711891,34454.0,34453.0,0.26207493]
[1625312026350,1.00654347,34454.0,34453.0,0.26207493]
[1625312026499,1.00654347,34454.0,34453.0,0.51887462]
[1625312028102,1.00654347,34454.0,34453.0,0.3477957]
[1625312030159,1.00654347,34454.0,34453.0,0.00547944]
[1625312030414,1.00654347,34454.0,34452.0,0.00547858]
[1625312031511,1.00813304,34453.0,34452.0,0.00547858]
[1625312031912,1.00816052,34454.0,34452.0,0.00547858]
[1625312032914,1.00833988,34453.0,34452.0,0.00547858]
[1625312034721,1.00833988,34453.0,34452.0,1.03299135]
[1625312035571,1.00833988,34453.0,34452.0,0.00547858]
[1625312036627,1.00833988,34453.0,34452.0,1.033184]
[1625312037579,1.00833988,34453.0,34452.0,0.00547858]
[1625312038130,1.00833988,34453.0,34452.0,1.03331778]
[1625312041685,2.19222801,34453.0,34452.0,1.03331778]
[1625312042784,2.19222801,34453.0,34452.0,0.00547858]
[1625312043386,2.19222801,34453.0,34452.0,1.03364802]
[1625312043887,2.19222801,34453.0,34452.0,0.00547858]
[1625312045891,2.25122801,34453.0,34452.0,0.00547858]
[1625312046090,2.54377801,34453.0,34452.0,0.00547858]
[1625312046192,3.90011182,34453.0,34452.0,0.00547858]
[1625312046742,3.90011182,34453.0,34452.0,0.26262528]
[1625312047196,3.95911182,34453.0,34452.0,0.26262528]
[1625312047293,3.95911182,34453.0,34452.0,0.00547858]
[1625312047797,5.48225077,34453.0,34452.0,0.00547858]
[1625312051902,6.16140754,34453.0,34452.0,0.00547858]
[1625312055608,6.10240754,34453.0,34452.0,0.00547858]
[1625312055709,6.16140754,34453.0,34452.0,0.00547858]
[1625312059719,6.10240754,34453.0,34452.0,0.00547858]
[1625312060119,6.16140754,34453.0,34452.0,0.00547858]
[1625312062724,6.10240754,34453.0,34452.0,0.00547858]
[1625312063126,6.16140754,34453.0,34452.0,0.00547858]
[1625312063429,6.16140754,34453.0,34452.0,0.09128291]
[1625312064882,6.16140754,34453.0,34452.0,0.26294979]
[1625312068040,6.16140754,34453.0,34452.0,0.60628178]
[1625312068791,6.16140754,34453.0,34452.0,0.09128291]
[1625312071194,6.16140754,34453.0,34452.0,0.26293653]
[1625312072244,6.16140754,34453.0,34452.0,0.09128291]
[1625312073047,6.16140754,34453.0,34452.0,0.00547858]
[1625312073449,6.10240754,34453.0,34452.0,0.00547858]
[1625312073549,6.10240754,34453.0,34452.0,0.26295941]
[1625312073900,6.16140754,34453.0,34452.0,0.26295941]
[1625312074101,6.16140754,34453.0,34452.0,0.60626201]
[1625312075054,6.10240754,34453.0,34452.0,0.60626201]
[1625312075454,6.16140754,34453.0,34452.0,0.60626201]
[1625312075757,6.17348293,34453.0,34452.0,0.60626201]
[1625312076407,6.17348293,34453.0,34452.0,0.26295941]
[1625312077508,6.17348293,34453.0,34452.0,0.09130552]
[1625312077961,6.17348293,34453.0,34452.0,0.262955]
[1625312079665,6.17348293,34453.0,34452.0,0.6062348]
[1625312081971,6.6839037,34453.0,34452.0,0.6062348]
[1625312083026,6.6839037,34453.0,34452.0,0.262955]
[1625312084685,6.6839037,34453.0,34452.0,0.00547858]
[1625312085938,8.38303522,34453.0,34452.0,0.00547858]
[1625312086487,6.6839037,34453.0,34452.0,0.00547858]
[1625312088642,8.38233213,34453.0,34452.0,0.00547858]
[1625312093404,8.32333213,34453.0,34452.0,0.00547858]
[1625312093656,8.38233213,34453.0,34452.0,0.00547858]
[1625312094008,8.32333213,34453.0,34452.0,0.00547858]
[1625312094110,8.38233213,34453.0,34452.0,0.00547858]
[1625312095012,8.32333213,34453.0,34452.0,0.00547858]
[1625312095311,8.38233213,34453.0,34452.0,0.00547858]
[1625312095559,8.32333213,34453.0,34452.0,0.00547858]
[1625312096111,8.38233213,34453.0,34452.0,0.00547858]
[1625312096562,8.32333213,34453.0,34452.0,0.00547858]
[1625312096762,8.38233213,34453.0,34452.0,0.00547858]
[1625312096862,8.32333213,34453.0,34452.0,0.00547858]
[1625312097664,8.38233213,34453.0,34452.0,0.00547858]
[1625312098365,8.32333213,34453.0,34452.0,0.00547858]
[1625312098515,8.38233213,34453.0,34452.0,0.00547858]
[1625312098616,8.32333213,34453.0,34452.0,0.00547858]
[1625312099470,8.38233213,34453.0,34452.0,0.00547858]
[1625312108348,8.46813213,34453.0,34452.0,0.00547858]
[1625312108499,8.38233213,34453.0,34452.0,0.00547858]
[1625312120571,8.32333213,34453.0,34452.0,0.22273858]
[1625312121571,8.38233213,34453.0,34452.0,0.22273858]
[1625312123425,8.38233213,34453.0,34452.0,0.00547858]
[1625312124478,8.32333213,34453.0,34452.0,0.00547858]
[1625312125430,6.6249037,34453.0,34452.0,0.00547858]
[1625312126133,6.6249037,34453.0,34452.0,0.09134896]
[1625312126589,6.6249037,34453.0,34452.0,0.26308896]
[1625312126791,6.61282831,34453.0,34452.0,0.26308896]
[1625312128293,6.61282831,34453.0,34452.0,0.09134896]
[1625312128441,6.62490094,34453.0,34452.0,0.09134896]
[1625312128692,6.62490094,34453.0,34452.0,0.00547858]
[1625312128892,6.61282831,34453.0,34452.0,0.00547858]
[1625312129843,6.61282831,34453.0,34452.0,0.09135211]
[1625312130946,6.61282831,34453.0,34452.0,0.17735211]
[1625312131447,6.61282831,34453.0,34452.0,0.34910147]
[1625312132298,6.61282831,34453.0,34452.0,0.26310147]
[1625312133450,6.61282831,34453.0,34452.0,0.00547858]
[1625312133698,6.62490228,34453.0,34452.0,0.00547858]
[1625312133950,6.61282831,34453.0,34452.0,0.00547858]
[1625312134553,6.61282831,34453.0,34452.0,0.09135766]
[1625312134703,6.67182831,34453.0,34452.0,0.09135766]
[1625312134853,6.68390227,34453.0,34452.0,0.09135766]
[1625312135305,6.68390227,34453.0,34452.0,0.00547858]
[1625312135911,8.37446298,34453.0,34452.0,0.00547858]
[1625312136358,8.37446298,34453.0,34451.0,0.18705402]
[1625312136512,0.01209187,34452.0,34451.0,0.18705402]
[1625312136712,0.13009187,34452.0,34451.0,0.18705402]
[1625312136813,0.13009187,34452.0,34443.0,0.60130889]
[1625312137113,0.48115088,34444.0,34441.0,0.25772546]
[1625312137212,0.67896088,34444.0,34441.0,0.25772546]
[1625312137312,0.67896088,34444.0,34440.0,0.25759376]
[1625312137313,7.03362199,34444.0,34440.0,0.25759376]
[1625312137614,7.03362199,34444.0,34441.0,0.00547456]
[1625312137814,0.79696088,34444.0,34441.0,0.00547456]
[1625312138362,6.23672284,34442.0,34441.0,0.00547456]
[1625312138462,6.29572284,34442.0,34441.0,0.00547456]
[1625312138811,6.35472284,34442.0,34441.0,0.00547456]
[1625312139413,6.35472284,34442.0,34439.0,0.00547491]
[1625312140268,7.90247822,34440.0,34439.0,0.00547491]
[1625312140467,8.02047822,34440.0,34439.0,0.00547491]
[1625312140717,8.02047822,34440.0,34438.0,0.00547508]
[1625312141019,8.02047822,34440.0,34433.0,0.25740914]
[1625312141119,0.48115088,34434.0,34433.0,0.25740914]
[1625312141320,0.54015088,34434.0,34433.0,0.25740914]
[1625312141520,6.7589636,34434.0,34433.0,0.00547524]
[1625312141821,6.7589636,34434.0,34432.0,0.00547527]
[1625312142676,6.7589636,34434.0,34431.0,0.0054755]
[1625312142773,6.21180439,34433.0,34431.0,0.0054755]
[1625312142875,6.27080439,34433.0,34431.0,0.0054755]
[1625312143324,6.27080439,34433.0,34431.0,0.26269427]
[1625312143325,3.52772638,34432.0,34431.0,0.26269427]
[1625312143424,4.70357919,34432.0,34431.0,0.26269427]
[1625312143574,4.76257919,34432.0,34431.0,0.26269427]
[1625312143976,3.4187714,34432.0,34431.0,0.09121509]
[1625312144377,4.76145392,34432.0,34431.0,0.0054755]
[1625312145577,4.76145392,34432.0,34430.0,0.4976448]
[1625312145828,4.76145392,34432.0,34430.0,0.24057544]
[1625312146278,3.35536363,34431.0,34430.0,0.24057544]
[1625312146378,3.41436363,34431.0,34430.0,0.24057544]
[1625312146631,3.41436363,34431.0,34430.0,0.246051]
[1625312146932,3.41436363,34431.0,34430.0,0.24057544]
[1625312147636,4.755085,34431.0,34430.0,0.24057544]
[1625312148184,3.41436363,34431.0,34430.0,0.24057544]
[1625312148986,3.41436363,34431.0,34430.0,0.29957544]
[1625312152845,0.059,34431.0,34430.0,0.29957544]
[1625312156152,2.235788,34431.0,34430.0,0.29957544]
[1625312156953,2.235788,34431.0,34430.0,0.56826544]
[1625312157553,2.176788,34431.0,34430.0,0.56826544]
[1625312157754,0.83749401,34431.0,34430.0,0.56826544]
[1625312158003,0.83749401,34431.0,34430.0,0.62726544]
[1625312158105,0.08396017,34432.0,34430.0,1.08657581]
[1625312158353,0.08396017,34432.0,34431.0,0.00547058]
[1625312158453,0.08396017,34432.0,34431.0,0.06447058]
[1625312158603,0.25192689,34432.0,34431.0,0.3208901]
[1625312159155,0.5882011,34432.0,34431.0,0.3208901]
[1625312159255,0.5882011,34432.0,34431.0,0.3798901]
[1625312159857,0.5882011,34432.0,34431.0,0.3208901]
[1625312160008,0.6472011,34432.0,34431.0,0.25641952]
[1625312160310,3.42210676,34432.0,34430.0,0.48115088]
[1625312160557,3.67781676,34432.0,34430.0,0.48115088]
[1625312160858,2.18829313,34431.0,34430.0,0.48115088]
[1625312161059,2.24729313,34431.0,34430.0,0.48115088]
[1625312161262,2.24729313,34431.0,34430.0,0.48662226]
[1625312161362,3.4256543,34431.0,34430.0,0.48662226]
[1625312161510,3.4256543,34431.0,34430.0,0.48115088]
[1625312163111,3.4256543,34431.0,34430.0,0.48662235]
[1625312164716,3.3666543,34431.0,34430.0,0.48662235]
[1625312164814,3.4256543,34431.0,34430.0,0.48662235]
[1625312171178,3.7153943,34431.0,34430.0,0.48662235]
[1625312171935,5.06281627,34431.0,34430.0,0.48662235]
[1625312172986,5.06281627,34431.0,34430.0,0.00547147]
[1625312173284,5.30339171,34431.0,34423.0,0.00547077]
[1625312173433,5.31550128,34431.0,34423.0,0.00547077]
[1625312173635,5.31550128,34431.0,34430.0,0.00547084]
[1625312173886,5.30339171,34431.0,34424.0,0.00547084]
[1625312174137,5.30339171,34431.0,34423.0,0.00547092]
[1625312174237,5.30339171,34431.0,34423.0,0.06447092]
[1625312174386,5.36239171,34431.0,34423.0,0.00547092]
[1625312174637,5.36239171,34431.0,34423.0,0.06447092]
[1625312174740,2.19128604,34425.0,34423.0,0.06447092]
[1625312174840,2.25028604,34425.0,34423.0,0.15267092]
[1625312174989,2.25028604,34425.0,34424.0,0.00547087]
[1625312175092,2.19128604,34425.0,34424.0,0.26270087]
[1625312175190,2.19128604,34425.0,34424.0,0.32170087]
[1625312175389,2.19128604,34425.0,34424.0,0.56227631]
[1625312175591,1.17998807,34425.0,34424.0,0.56227631]
[1625312176244,0.50629816,34425.0,34424.0,0.56227631]
[1625312176592,0.50629816,34425.0,34424.0,0.62127631]
[1625312176693,0.50629816,34425.0,34424.0,0.56227631]
[1625312176797,0.25332452,34425.0,34424.0,0.56227631]
[1625312177497,0.08463869,34426.0,34424.0,1.16017452]
[1625312177744,0.08463869,34426.0,34425.0,0.00547019]
[1625312177946,0.59173044,34426.0,34425.0,0.06447019]
[1625312178497,0.25372558,34426.0,34425.0,0.06447019]
[1625312178900,0.50704886,34426.0,34425.0,0.06447019]
[1625312179250,1.18318188,34426.0,34425.0,0.06447019]
[1625312179751,0.50710209,34426.0,34425.0,0.06447019]
[1625312180104,0.59229788,34426.0,34425.0,0.06447019]
[1625312180504,0.50758728,34426.0,34425.0,0.06447019]
[1625312181055,0.84579453,34426.0,34425.0,0.06447019]
[1625312183059,0.50764791,34426.0,34425.0,0.06447019]
[1625312183861,0.56664791,34426.0,34425.0,0.06447019]
[1625312183963,1.24327255,34426.0,34425.0,0.06447019]
[1625312184564,1.18427255,34426.0,34425.0,0.06447019]
[1625312185120,0.84615008,34426.0,34425.0,0.06447019]
[1625312185621,0.50756954,34426.0,34425.0,0.14995472]
[1625312186324,0.84618207,34426.0,34425.0,0.14995472]
[1625312187025,0.84618207,34426.0,34425.0,0.14448453]
[1625312187277,0.84618207,34426.0,34425.0,0.14995476]
[1625312187375,0.50756954,34426.0,34425.0,0.14995476]
[1625312187932,1.18519374,34426.0,34425.0,0.57768833]
[1625312188431,1.18519374,34426.0,34425.0,0.15000874]
[1625312188830,1.18519374,34426.0,34425.0,0.20900874]
[1625312189030,2.20183513,34426.0,34425.0,0.06447023]
[1625312189430,2.20183513,34426.0,34425.0,0.91988266]
[1625312189431,0.50756954,34426.0,34425.0,0.91988266]
[1625312189834,1.185952,34426.0,34425.0,0.57771769]
[1625312191484,1.185952,34426.0,34425.0,1.26249276]
[1625312191985,2.20552659,34426.0,34425.0,1.26249276]
[1625312192436,0.24057544,34431.0,34425.0,0.06447023]
[1625312192634,0.29957544,34431.0,34425.0,0.06447023]
[1625312192884,0.29957544,34431.0,34426.0,0.00546811]
[1625312192984,1.18918493,34428.0,34427.0,0.51398797]
[1625312193184,1.18918493,34428.0,34427.0,0.57298797]
[1625312193387,3.40032194,34428.0,34427.0,1.26497718]
[1625312193535,3.40032194,34428.0,34427.0,1.50555262]
[1625312194488,4.75964072,34428.0,34427.0,1.50555262]
[1625312194991,3.40032194,34428.0,34427.0,1.50555262]
[1625312195587,3.40032194,34428.0,34427.0,2.53610722]
[1625312195588,4.76069812,34428.0,34427.0,2.53610722]
[1625312199441,4.76069812,34428.0,34427.0,3.73907547]
[1625312199996,4.76069812,34428.0,34427.0,2.53610722]
[1625312200597,4.76069812,34428.0,34427.0,3.73918267]
[1625312202052,4.76069812,34428.0,34427.0,5.11409365]
[1625312203254,4.76069812,34428.0,34427.0,5.17309365]
[1625312203455,2.75909812,34428.0,34427.0,5.17309365]
[1625312203806,1.39872194,34428.0,34427.0,5.17309365]
[1625312204456,0.24452194,34428.0,34427.0,5.17309365]
[1625312205808,0.24452194,34428.0,34427.0,6.71946205]
[1625312206960,0.24452194,34428.0,34427.0,5.17309365]